bitfinex-derivatives/quotes_ETHF0:USTF0_20250213
["timestamp","ask_amount","ask_price","bid_price","bid_amount"]
[1739440606828,0.75124315,2681.8,2681.7,0.74568]
[1739440607028,0.00559315,2681.8,2681.7,0.74568]
[1739440608233,0.75124315,2681.8,2681.7,0.74568]
[1739440609234,0.00559315,2681.8,2681.7,0.74568]
[1739440612736,0.75124315,2681.8,2681.7,0.74568]
[1739440614340,0.00559315,2681.8,2681.7,0.74568]
[1739440618841,0.75124315,2681.8,2681.7,0.74568]
[1739440625754,0.00559315,2681.8,2681.6,0.5857]
[1739440626046,0.74571,2681.6,2681.5,3.95351]
[1739440626651,1.6736,2681.7,2681.5,3.2078]
[1739440626850,2.4193,2681.7,2681.6,0.74571]
[1739440627252,1.6736,2681.7,2681.6,0.74571]
[1739440627648,1.6736,2681.7,2681.6,1.31091]
[1739440628043,2.41928,2681.7,2681.6,1.31091]
[1739440628649,0.74571,2681.6,2681.5,3.95352]
[1739440628846,0.74571,2681.6,2681.5,3.2078]
[1739440629242,2.21411804,2681.6,2681.5,3.2078]
[1739440629648,0.74571,2681.6,2681.5,3.2078]
[1739440629848,0.74571,2681.6,2681.5,3.95354]
[1739440630047,1.6736,2681.7,2681.5,3.2078]
[1739440630350,2.41929,2681.7,2681.6,0.74571]
[1739440633649,0.5618,2681.7,2681.6,0.74571]
[1739440633857,0.00559315,2681.8,2681.7,0.74568]
[1739440635949,0.75124315,2681.8,2681.7,0.74568]
[1739440636954,0.74568,2681.7,2681.6,1.90468]
[1739440637156,0.74568,2681.7,2681.6,0.74568]
[1739440637349,1.87728,2681.7,2681.6,0.74568]
[1739440638754,1.1316,2681.7,2681.6,0.74568]
[1739440641554,1.87728,2681.7,2681.6,0.74568]
[1739440641960,1.1316,2681.7,2681.6,0.74568]
[1739440644357,0.5699,2681.7,2681.6,0.74568]
[1739440644562,0.00559315,2681.8,2681.7,0.74568]
[1739440644772,0.00559315,2681.8,2681.7,1.88008]
[1739440645063,0.75124315,2681.8,2681.7,1.88008]
[1739440645258,0.00559315,2681.8,2681.7,1.88008]
[1739440646960,1.153,2682.4,2681.7,1.1344]
[1739440647166,0.5896,2682.4,2682.3,0.74551]
[1739440647562,1.33509,2682.4,2682.3,0.74551]
[1739440647765,0.5896,2682.4,2682.3,0.74551]
[1739440647963,4.53678,2682.5,2682.4,0.74549]
[1739440648163,0.5835,2682.5,2682.3,1.46840804]
[1739440648363,0.74549,2682.4,2682.3,2.21389804]
[1739440649267,1.32896,2682.5,2682.4,0.74549]
[1739440649569,0.5835,2682.5,2682.4,0.74549]
[1739440649865,0.5835,2682.5,2682.3,1.46840804]
[1739440650166,0.74549,2682.4,2682.3,2.21389804]
[1739440650369,0.5835,2682.5,2682.4,0.74549]
[1739440650370,1.32897,2682.5,2682.4,0.74549]
[1739440650667,0.74549,2682.4,2682.3,2.21389804]
[1739440650968,0.74549,2682.4,2682.3,1.46840804]
[1739440651167,0.74551,2682.3,2682.2,43.30414]
[1739440652172,0.7455,2682.4,2682.3,0.74551]
[1739440652668,0.5835,2682.5,2682.2,42.5586]
[1739440652861,1.32897,2682.5,2682.4,0.74549]
[1739440653064,0.74549,2682.4,2682.3,2.21390804]
[1739440654063,0.74549,2682.4,2682.3,1.46840804]
[1739440654272,0.5835,2682.5,2682.2,1.7586]
[1739440654477,0.74551,2682.3,2682.2,2.50413]
[1739440656172,0.5835,2682.5,2682.2,1.7586]
[1739440656473,0.74551,2682.4,2682.3,0.7455]
[1739440658271,0.5835,2682.5,2682.2,1.7586]
[1739440658476,1.32896,2682.5,2682.4,0.74549]
[1739440658975,0.74551,2682.4,2682.3,0.7455]
[1739440661479,0.5835,2682.5,2682.2,1.7586]
[1739440661780,0.5835,2682.5,2682.4,3.2078]
[1739440661976,0.5835,2682.5,2682.4,3.95329]
[1739440662173,0.00559315,2682.6,2682.4,3.2078]
[1739440662379,0.00559315,2682.6,2682.5,2.21386804]
[1739440662683,0.00559315,2682.6,2682.5,2.75856804]
[1739440665881,0.00559315,2682.6,2682.5,1.29016]
[1739440667788,0.75102315,2682.6,2682.5,1.29016]
[1739440667984,0.00559315,2682.6,2682.5,1.29016]
[1739440668489,0.57229315,2682.6,2682.5,1.29016]
[1739440669186,1.31772315,2682.6,2682.5,1.29016]
[1739440669391,0.57229315,2682.6,2682.5,1.29016]
[1739440670488,0.57229315,2682.6,2682.5,1.59112535]
[1739440670885,0.00559315,2682.6,2682.5,1.59112535]
[1739440671788,5.19366804,2684.0,2682.5,1.59112535]
[1739440671789,4.67620804,2683.8,2682.6,1.86359]
[1739440671993,0.5412,2683.3,2683.2,0.74526]
[1739440672181,0.5412,2683.3,2683.2,1.32646]
[1739440672386,0.5412,2683.3,2683.2,2.79486804]
[1739440674088,1.12989315,2683.5,2683.4,0.74521]
[1739440674286,1.12989315,2683.5,2683.4,3.95301]
[1739440674586,1.87507315,2683.5,2683.4,3.95301]
[1739440674784,1.12989315,2683.5,2683.4,3.95301]
[1739440675393,1.12989315,2683.5,2683.4,5.42141804]
[1739440676793,0.56799315,2683.5,2683.4,5.42141804]
[1739440677589,0.56799315,2683.5,2683.4,3.95301]
[1739440677795,1.31317315,2683.5,2683.4,3.95301]
[1739440679493,1.31317315,2683.5,2683.4,3.2078]
[1739440679691,1.31317315,2683.5,2683.4,3.95301]
[1739440679893,1.31317315,2683.5,2683.4,3.2078]
[1739440680090,1.31317315,2683.5,2683.4,3.95301]
[1739440680296,1.31317315,2683.5,2683.4,3.2078]
[1739440680698,1.31317315,2683.5,2683.4,3.95301]
[1739440681090,0.56799315,2683.5,2683.4,3.95301]
[1739440681490,1.31317315,2683.5,2683.4,3.95301]
[1739440682295,1.31317315,2683.5,2683.4,3.2078]
[1739440684297,1.31317315,2683.5,2683.4,3.95301]
[1739440685202,0.56799315,2683.5,2683.4,3.95301]
[1739440685402,1.31317315,2683.5,2683.4,3.95301]
[1739440686396,1.31317315,2683.5,2683.4,3.2078]
[1739440687200,0.74526,2683.2,2683.1,3.95307]
[1739440687394,0.74526,2683.2,2683.1,3.95309]
[1739440688898,0.5506,2683.3,2683.1,3.2078]
[1739440689094,0.74526,2683.2,2683.1,3.95308]
[1739440690297,0.74526,2683.2,2683.1,3.95309]
[1739440693413,1.29584,2683.3,2683.2,0.74526]
[1739440693596,1.29586,2683.3,2683.2,0.74526]
[1739440694905,0.5506,2683.3,2683.2,0.74526]
[1739440695114,1.29584,2683.3,2683.2,0.74526]
[1739440695409,0.74526,2683.2,2683.1,3.95308]
[1739440696011,0.74526,2683.2,2683.1,44.0078]
[1739440696310,0.74526,2683.2,2683.1,44.75309]
[1739440697007,0.74526,2683.2,2683.1,3.95309]
[1739440698510,0.74526,2683.2,2683.1,3.2078]
[1739440699512,0.74526,2683.2,2683.1,3.95309]
[1739440699718,0.74526,2683.2,2683.1,3.2078]
[1739440699906,0.74526,2683.2,2683.1,3.95309]
[1739440701004,0.5506,2683.3,2683.1,3.2078]
[1739440701212,1.29585,2683.3,2683.2,0.74526]
[1739440701511,1.29584,2683.3,2683.2,0.74526]
[1739440702210,1.33903,2683.4,2683.3,0.74524]
[1739440703317,1.33903,2683.4,2683.3,0.5533]
[1739440704719,1.33903,2683.4,2683.3,1.29854]
[1739440707619,1.33903,2683.4,2683.3,0.5533]
[1739440707814,0.5938,2683.4,2683.1,3.95307]
[1739440708121,0.74526,2683.2,2683.1,4.49637]
[1739440711624,0.74526,2683.2,2683.1,4.49639]
[1739440712627,0.74526,2683.3,2683.2,0.74525]
[1739440712926,0.74526,2683.2,2683.1,4.49638]
[1739440713322,0.74526,2683.3,2683.2,0.74524]
[1739440715827,0.5938,2683.4,2683.1,3.7511]
[1739440716029,1.33902,2683.4,2683.3,0.74524]
[1739440718624,0.74526,2683.3,2683.2,0.74525]
[1739440720130,0.5938,2683.4,2683.1,3.7511]
[1739440720330,1.33904,2683.4,2683.3,0.74524]
[1739440720525,0.00559315,2683.5,2683.1,5.61432]
[1739440720726,0.75081315,2683.5,2683.4,0.74521]
[1739440722530,0.74525,2683.4,2683.3,0.74521]
[1739440722729,1.34255,2683.4,2683.3,0.74521]
[1739440723824,0.5973,2683.4,2683.3,0.74521]
[1739440724031,0.00559315,2683.5,2683.2,1.46840804]
[1739440724332,0.00559315,2683.5,2683.4,2.21361804]
[1739440724931,0.00559315,2683.5,2683.4,2.78711804]
[1739440726734,0.00559315,2683.5,2683.4,5.99491804]
[1739440729223,1.46840804,2684.2,2683.4,5.24970804]
[1739440729429,0.5389,2684.1,2684.0,0.74504]
[1739440732538,1.28391,2684.1,2684.0,0.74504]
[1739440733933,0.5389,2684.1,2684.0,0.74504]
[1739440734637,1.16359315,2684.3,2684.0,0.74504]
[1739440734835,1.16359315,2684.3,2684.2,0.74499]
[1739440735034,1.90855315,2684.3,2684.2,0.74499]
[1739440735241,1.90855315,2684.3,2684.2,1.28449]
[1739440737937,1.16359315,2684.3,2684.2,1.28449]
[1739440738138,1.90855315,2684.3,2684.2,1.28449]
[1739440738340,1.90855315,2684.3,2684.2,0.5395]
[1739440739040,1.90855315,2684.3,2684.2,1.28449]
[1739440740838,1.16359315,2684.3,2684.2,1.28449]
[1739440741941,1.90855315,2684.3,2684.2,1.28449]
[1739440742447,1.90855315,2684.3,2684.2,0.5395]
[1739440742744,3.37696119,2684.3,2684.2,0.5395]
[1739440742950,0.74499,2684.2,2684.1,3.95279]
[1739440743156,3.37698119,2684.3,2684.2,0.74499]
[1739440744240,1.90857315,2684.3,2684.2,0.74499]
[1739440744949,1.16359315,2684.3,2684.2,0.74499]
[1739440746057,0.00559315,2684.3,2684.2,0.74499]
[1739440746943,0.00559315,2684.3,2684.2,1.29229]
[1739440747142,0.00559315,2684.3,2684.2,1.86299]
[1739440747539,4.67620804,2685.3,2684.2,1.118]
[1739440747746,1.165,2685.0,2684.9,2.21319804]
[1739440749648,0.5652,2685.2,2684.9,1.46840804]
[1739440749854,0.5652,2685.2,2685.1,2.21314804]
[1739440750252,4.67620804,2685.9,2685.1,2.64920804]
[1739440750459,0.5417,2685.6,2685.5,2.21302804]
[1739440750657,0.5417,2685.6,2685.5,1.46840804]
[1739440750969,0.5417,2685.6,2685.5,43.01303804]
[1739440751656,0.5417,2685.6,2685.5,41.54463]
[1739440753349,0.5417,2685.6,2685.5,0.74463]
[1739440758264,0.5417,2685.6,2685.4,3.2078]
[1739440758470,0.74463,2685.5,2685.1,9.0336]
[1739440758671,0.74463,2685.5,2685.3,0.74466]
[1739440758871,0.74463,2685.5,2685.1,9.0336]
[1739440759372,0.5417,2685.6,2685.1,9.33134291]
[1739440759573,0.74463,2685.5,2685.3,0.74466]
[1739440759967,0.74463,2685.5,2685.1,9.0336]
[1739440760173,0.5417,2685.6,2685.3,0.74466]
[1739440760475,0.5417,2685.6,2685.1,9.0336]
[1739440760690,0.74471,2685.2,2685.1,6.2038]
[1739440761002,0.74471,2685.2,2685.1,3.2078]
[1739440761887,0.74471,2685.2,2685.1,3.95254]
[1739440762285,0.74471,2685.2,2685.1,3.2078]
[1739440762492,1.86166,2685.4,2685.0,41.54474]
[1739440762707,1.29694,2685.1,2685.0,41.54474]
[1739440762884,1.29694,2685.1,2685.0,0.74474]
[1739440763477,1.29694,2685.1,2684.8,3.7646]
[1739440763776,0.5522,2685.1,2685.0,0.74476]
[1739440767967,1.86145,2685.7,2684.9,40.8]
[1739440767968,1.86137,2685.8,2685.1,1.86185]
[1739440768169,0.74468,2685.4,2685.3,0.74467]
[1739440768572,1.28948,2685.4,2685.3,40.8]
[1739440770074,1.28948,2685.4,2685.3,41.54468]
[1739440770579,1.28948,2685.4,2685.3,0.74468]
[1739440770778,1.28948,2685.4,2685.1,1.111]
[1739440770779,0.5448,2685.4,2685.1,1.111]
[1739440770981,1.28948,2685.4,2685.2,40.8]
[1739440771280,1.28948,2685.4,2685.3,0.74468]
[1739440771781,0.5448,2685.4,2685.3,0.74468]
[1739440771981,1.28945,2685.4,2685.3,0.74468]
[1739440772298,1.28945,2685.4,2685.3,3.95248]
[1739440772870,1.28945,2685.4,2685.3,40.8]
[1739440773380,1.28945,2685.4,2685.3,0.74468]
[1739440774875,0.5448,2685.4,2685.3,0.74468]
[1739440775078,1.46492369,2685.7,2685.3,3.2078]
[1739440775283,1.46492369,2686.1,2685.6,1.46492369]
[1739440775575,3.72168,2686.6,2685.3,3.2078]
[1739440775576,0.74465,2685.4,2685.3,3.2078]
[1739440776778,4.98655266,2685.7,2685.0,3.2078]
[1739440777089,0.74476,2685.1,2685.0,3.2078]
[1739440778980,1.1655,2685.2,2684.7,0.00559315]
[1739440779584,0.74482,2684.8,2684.7,0.00559315]
[1739440780379,0.74482,2684.8,2684.7,0.75044315]
[1739440780686,0.74482,2684.8,2684.7,0.00559315]
[1739440785676,0.74482,2684.8,2684.7,0.75044315]
[1739440787184,0.74482,2684.8,2684.7,0.00559315]
[1739440787885,0.74482,2684.8,2684.7,0.75044315]
[1739440788088,0.74482,2684.8,2684.7,0.00559315]
[1739440789286,1.32692,2684.8,2684.7,0.00559315]
[1739440789487,1.90452,2684.8,2684.7,0.00559315]
[1739440794089,1.90452,2684.8,2684.7,0.75044315]
[1739440796600,1.90452,2684.8,2684.7,0.00559315]
[1739440800499,1.90452,2684.8,2684.7,0.75044315]
[1739440800886,1.90452,2684.8,2684.7,0.00559315]
[1739440802197,1.1597,2684.8,2684.7,0.75044315]
[1739440802399,1.90452,2684.8,2684.7,0.75044315]
[1739440802999,1.1597,2684.8,2684.7,0.75044315]
[1739440803198,0.5821,2684.8,2684.7,1.87544315]
[1739440803404,1.32692,2684.8,2684.7,1.87544315]
[1739440804001,1.32692,2684.8,2684.7,1.13059315]
[1739440804501,1.32692,2684.8,2684.7,1.87544315]
[1739440804701,1.32692,2684.8,2684.7,0.00559315]
[1739440805905,4.53472,2684.8,2684.7,0.00559315]
[1739440806101,4.53472,2684.8,2684.2,3.2078]
[1739440806102,0.74496,2684.3,2684.2,3.2078]
[1739440806300,0.74504,2684.0,2683.9,3.2078]
[1739440806895,2.41658,2684.2,2683.8,0.5685]
[1739440806896,5.62438,2684.2,2683.8,0.5685]
[1739440807100,0.74515,2683.6,2683.5,4.49727]
[1739440807399,0.74515,2683.6,2683.5,4.3206]
[1739440807996,0.74514,2683.7,2683.6,0.74514]
[1739440808404,0.5858,2683.8,2683.5,4.3206]
[1739440808602,0.74513,2683.7,2683.6,0.74515]
[1739440808901,0.74515,2683.7,2683.6,0.74515]
[1739440809101,0.5858,2683.8,2683.5,4.3206]
[1739440809297,0.5858,2683.8,2683.7,0.74513]
[1739440809607,0.74508,2683.9,2683.7,0.74511]
[1739440810106,0.558,2684.1,2683.5,4.3206]
[1739440810293,0.74508,2683.9,2683.7,0.74511]
[1739440810498,0.74511,2683.8,2683.6,0.74514]
[1739440811003,0.74511,2683.8,2683.7,40.8]
[1739440811004,0.7451,2683.8,2683.7,40.8]
[1739440811509,0.74509,2683.9,2683.7,0.74511]
[1739440812010,2.42058,2684.1,2683.6,40.8]
[1739440812308,0.74513,2683.7,2683.6,40.8]
[1739440812710,0.74513,2683.7,2683.6,41.54515]
[1739440812911,0.74513,2683.7,2683.6,40.8]
[1739440813113,0.74511,2683.8,2683.7,0.74512]
[1739440813306,1.86261,2684.0,2683.5,4.3206]
[1739440813610,0.74515,2683.6,2683.5,3.2078]
[1739440814911,1.30525,2683.6,2683.5,3.2078]
[1739440820219,1.30525,2683.6,2683.3,0.00559315]
[1739440820220,0.74521,2683.4,2683.3,0.00559315]
[1739440820819,0.74521,2683.4,2683.3,40.80559315]
[1739440822824,0.74521,2683.4,2683.3,0.00559315]
[1739440828432,0.74521,2683.4,2683.3,0.75083315]
[1739440829133,0.74521,2683.4,2683.3,0.00559315]
[1739440829935,1.37725446,2683.4,2683.3,0.00559315]
[1739440830129,0.7454,2682.7,2682.6,41.9088]
[1739440830327,0.7454,2682.7,2682.6,1.6542]
[1739440830835,0.7454,2682.7,2682.6,1.1147]
[1739440831427,6.86004581,2682.9,2682.4,0.00559315]
[1739440831628,0.74546,2682.5,2682.4,0.00559315]
[1739440833832,4.99664581,2682.9,2682.4,0.00559315]
[1739440834032,1.72349315,2682.9,2682.4,0.00559315]
[1739440834527,1.12619315,2682.9,2682.4,1.17659315]
[1739440834728,0.74542,2682.7,2682.6,0.74543]
[1739440834928,1.12619315,2682.9,2682.6,3.2078]
[1739440835128,0.74539,2682.8,2682.7,0.74539]
[1739440835528,0.57489315,2682.9,2682.8,0.74538]
[1739440835735,0.00559315,2682.9,2682.8,0.74538]
[1739440836734,0.00559315,2682.9,2682.8,4.01853266]
[1739440837032,0.74518,2683.6,2683.4,0.74519]
[1739440837227,0.74518,2683.6,2683.5,0.5545]
[1739440837228,0.74515,2683.6,2683.5,0.5545]
[1739440838532,0.74521,2683.4,2683.3,0.5408]
[1739440838728,0.74521,2683.4,2683.2,3.2078]
[1739440838729,0.74524,2683.3,2683.2,3.7623]
[1739440840537,0.5902,2683.5,2683.2,0.5545]
[1739440840736,0.74524,2683.3,2683.2,1.29976]
[1739440841032,0.5902,2683.5,2683.2,0.5545]
[1739440841239,0.74519,2683.5,2683.3,0.74523]
[1739440841441,0.74519,2683.5,2683.3,1.30613]
[1739440841829,0.74519,2683.5,2683.3,0.5609]
[1739440842031,4.43694581,2683.8,2683.3,3.7687]
[1739440842032,0.59529315,2683.8,2683.3,3.7687]
[1739440842237,0.74513,2683.7,2683.5,0.74516]
[1739440842436,0.00559315,2683.8,2683.3,3.7687]
[1739440842437,0.00559315,2683.8,2683.6,1.31854]
[1739440842734,0.00559315,2683.8,2683.3,4.51393]
[1739440842940,0.00559315,2683.8,2683.3,5.62583]
[1739440842941,0.74521,2683.4,2683.3,5.62583]
[1739440843140,0.74521,2683.4,2683.3,4.8806]
[1739440843641,0.74521,2683.4,2683.3,5.62584]
[1739440843841,1.6603,2683.7,2683.3,4.8806]
[1739440844041,0.74517,2683.6,2683.4,0.74518]
[1739440844340,0.74517,2683.6,2683.5,0.74518]
[1739440844544,1.0918,2683.7,2683.3,4.8806]
[1739440844842,0.00559315,2683.8,2683.3,6.74368]
[1739440845042,0.75070315,2683.8,2683.7,0.74513]
[1739440845341,0.00559315,2683.8,2683.3,4.8806]
[1739440845542,0.00559315,2683.8,2683.5,0.74515]
[1739440845834,0.74515,2683.6,2683.5,0.74515]
[1739440846039,0.74518,2683.5,2683.4,41.54519]
[1739440846240,0.74517,2683.6,2683.5,0.74517]
[1739440846935,0.00559315,2683.8,2683.4,40.8]
[1739440847146,0.00559315,2683.8,2683.3,4.8806]
[1739440847433,0.74516,2683.6,2683.5,0.74516]
[1739440847840,0.00559315,2683.8,2683.3,45.6806]
[1739440848040,0.00559315,2683.8,2683.6,0.74515]
[1739440848041,0.74514,2683.7,2683.6,0.74515]
[1739440848339,0.00559315,2683.8,2683.7,0.74513]
[1739440848836,0.75069315,2683.8,2683.7,0.74513]
[1739440849041,0.00559315,2683.8,2683.5,0.29276488]
[1739440849231,0.00559315,2683.8,2683.3,45.6806]
[1739440849435,0.74515,2683.7,2683.6,0.74514]
[1739440849642,0.00559315,2683.8,2683.3,47.54368]
[1739440849843,0.74518,2683.6,2683.5,0.74518]
[1739440851544,0.74518,2683.6,2683.3,45.6806]
[1739440851545,0.74514,2683.7,2683.6,0.74513]
[1739440851844,0.75070315,2683.8,2683.7,0.74513]
[1739440852245,0.00559315,2683.8,2683.4,2.15645265]
[1739440852448,0.75071315,2683.8,2683.7,0.74513]
[1739440853444,0.75069315,2683.8,2683.7,0.74513]
[1739440853649,0.75069315,2683.8,2683.6,0.74514]
[1739440853650,0.74516,2683.7,2683.6,0.74514]
[1739440854147,0.75069315,2683.8,2683.7,0.74513]
[1739440854348,0.00559315,2683.8,2683.4,2.15645265]
[1739440854538,0.75071315,2683.8,2683.4,2.15645265]
[1739440854740,0.75071315,2683.8,2683.7,0.74513]
[1739440854946,0.74515,2683.7,2683.6,0.74513]
[1739440855138,0.00559315,2683.8,2683.4,2.15645265]
[1739440855345,0.00559315,2683.8,2683.7,0.74513]
[1739440855743,0.75069315,2683.8,2683.7,1.1441]
[1739440856145,0.75069315,2683.8,2683.7,0.5819]
[1739440856344,0.75069315,2683.8,2683.7,1.32703]
[1739440856748,0.75069315,2683.8,2683.7,0.5819]
[1739440857148,0.74513,2683.7,2683.6,3.2078]
[1739440857344,0.74518,2683.5,2683.4,1.3074]
[1739440858150,1.1359,2683.7,2683.4,0.5622]
[1739440858349,0.74517,2683.6,2683.5,0.74516]
[1739440859352,1.1359,2683.7,2683.4,0.5622]
[1739440859651,0.74518,2683.6,2683.5,0.74517]
[1739440860048,1.1359,2683.7,2683.4,0.5622]
[1739440860348,0.74517,2683.6,2683.5,0.74515]
[1739440861748,1.1359,2683.7,2683.4,0.5622]
[1739440862050,0.5964,2683.6,2683.3,45.85692]
[1739440862248,0.74521,2683.4,2683.3,45.85692]
[1739440862643,0.74521,2683.4,2683.3,3.2078]
[1739440863450,0.74535,2682.9,2682.8,3.2078]
[1739440867354,4.3178,2683.1,2682.4,41.94349315]
[1739440867663,0.74546,2682.5,2682.4,0.00559315]
[1739440869150,0.74546,2682.5,2682.4,0.75108315]
[1739440870062,0.74546,2682.5,2682.4,0.00559315]
[1739440875462,0.80822762,2682.5,2682.4,0.00559315]
[1739440875652,0.74546,2682.5,2682.4,0.00559315]
[1739440875854,0.80822721,2682.5,2682.4,0.00559315]
[1739440876268,0.74546,2682.5,2682.4,0.00559315]
[1739440882065,0.74565,2681.9,2681.8,0.74565]
[1739440883064,0.74565,2681.8,2681.7,3.95345]
[1739440883266,0.74568,2681.7,2681.6,3.80349315]
[1739440883470,0.74568,2681.7,2681.6,0.00559315]
[1739440886665,0.74568,2681.7,2681.6,0.75130315]
[1739440887968,0.74568,2681.7,2681.6,0.00559315]
[1739440888365,0.74566,2681.9,2681.8,0.74565]
[1739440888572,3.2078,2682.0,2681.7,1.1042]
[1739440888766,0.00559315,2682.1,2681.8,0.5627]
[1739440888961,0.00559315,2682.1,2682.0,0.7456]
[1739440889170,0.00559315,2682.1,2682.0,4.01875266]
[1739440891862,0.7456,2682.0,2681.9,3.2078]
[1739440894673,0.00559315,2682.1,2681.7,1.1042]
[1739440894875,0.00559315,2682.1,2681.7,1.84988]
[1739440894876,0.74565,2681.8,2681.7,1.84988]
[1739440895076,0.74565,2681.8,2681.7,1.84986]
[1739440896279,0.74565,2681.9,2681.7,1.84986]
[1739440896573,0.74565,2681.9,2681.8,0.74565]
[1739440896876,0.74561,2682.0,2681.9,0.74562]
[1739440897078,0.00559315,2682.1,2682.0,0.7456]
[1739440897879,0.00559315,2682.1,2682.0,4.01875266]
[1739440901680,1.1337,2682.8,2682.0,4.01875266]
[1739440901681,0.74536,2682.9,2682.4,1.86372]
[1739440901884,0.74538,2682.8,2682.7,0.74538]
[1739440902084,5.65509,2683.2,2682.6,0.74541]
[1739440902275,5.65509,2683.2,2682.5,5.66224]
[1739440902276,1.86331,2683.0,2682.5,5.66224]
[1739440902581,0.74543,2682.6,2682.5,5.66224]
[1739440902775,0.74542,2682.7,2682.6,0.74543]
[1739440905680,0.5434,2682.8,2682.5,4.9168]
[1739440905886,0.74543,2682.6,2682.5,5.66224]
[1739440907192,0.74543,2682.6,2682.5,5.12354]
[1739440907586,0.74543,2682.6,2682.5,3.2078]
[1739440908593,0.74543,2682.6,2682.5,3.95326]
[1739440908789,0.74538,2682.8,2682.7,0.7454]
[1739440908995,0.7454,2682.8,2682.7,0.74539]
[1739440909993,0.56989315,2683.0,2682.6,1.7119]
[1739440910298,0.75091315,2683.0,2682.9,0.74535]
[1739440910696,0.00559315,2683.0,2682.9,0.74535]
[1739440911091,0.75091315,2683.0,2682.9,0.74535]
[1739440912201,0.00559315,2683.0,2682.8,3.2078]
[1739440912390,1.33265,2682.9,2682.8,3.2078]
[1739440912897,0.7454,2682.7,2682.6,0.5968]
[1739440913099,0.74543,2682.6,2682.5,3.95325]
[1739440915198,0.5873,2682.9,2682.5,3.2078]
[1739440915403,0.7454,2682.8,2682.7,0.74538]
[1739440919004,0.74539,2682.8,2682.7,0.74538]
[1739440920000,0.5873,2682.9,2682.8,0.74538]
[1739440920205,0.5873,2682.9,2682.8,3.95318]
[1739440920389,0.74538,2682.8,2682.7,0.5585]
[1739440920596,2.4507,2682.9,2682.5,3.95323]
[1739440920799,0.74543,2682.6,2682.5,3.95323]
[1739440921104,0.74543,2682.6,2682.5,3.2078]
[1739440921500,0.74543,2682.6,2682.1,1.33186]
[1739440921501,0.74554,2682.2,2682.1,1.33186]
[1739440921801,0.74554,2682.2,2682.1,0.5863]
[1739440922000,2.45358,2682.5,2682.0,3.2078]
[1739440922299,0.74557,2682.1,2682.0,3.95338]
[1739440922496,0.74556,2682.2,2682.0,3.95338]
[1739440922803,0.5899,2682.1,2682.0,3.95338]
[1739440923200,0.5899,2682.1,2682.0,3.2078]
[1739440923408,1.33547,2682.1,2682.0,3.2078]
[1739440923706,0.5899,2682.1,2681.6,3.21339315]
[1739440923895,0.74566,2681.8,2681.6,3.95908315]
[1739440924097,0.5889,2681.7,2681.6,3.95908315]
[1739440924406,0.5889,2681.7,2681.6,3.21339315]
[1739440924605,1.33458,2681.7,2681.6,3.21339315]
[1739440924798,0.5889,2681.7,2681.6,3.95910315]
[1739440925702,1.33458,2681.7,2681.6,3.21339315]
[1739440926097,1.33458,2681.7,2681.6,3.95910315]
[1739440926803,1.33458,2681.7,2681.6,3.21339315]
[1739440928703,0.5889,2681.7,2681.6,3.95910315]
[1739440929601,1.33458,2681.7,2681.6,3.95910315]
[1739440930610,1.33458,2681.7,2681.6,3.21339315]
[1739440931004,1.33458,2681.7,2681.6,3.95910315]
[1739440931199,1.33458,2681.7,2681.6,3.21339315]
[1739440931605,1.33458,2681.7,2681.6,0.00559315]
[1739440932314,0.5889,2681.7,2681.6,0.00559315]
[1739440932505,0.5889,2681.7,2681.6,0.75130315]
[1739440932708,1.33458,2681.7,2681.6,0.75130315]
[1739440933210,1.33458,2681.7,2681.6,0.00559315]
[1739440934112,1.33458,2681.7,2681.6,0.75130315]
[1739440934407,1.1734,2682.0,2681.6,3.21339315]
[1739440934609,1.1734,2682.0,2681.9,0.74563]
[1739440934610,0.74562,2682.0,2681.9,0.74563]
[1739440935007,0.74562,2682.0,2681.7,1.7258]
[1739440935008,0.74565,2681.9,2681.8,0.74561]
[1739440935408,1.1652,2682.3,2681.7,4.99895266]
[1739440935615,0.58,2682.3,2682.2,0.74554]
[1739440935919,1.32551,2682.3,2682.2,0.74554]
[1739440936215,0.74554,2682.2,2682.1,0.5423]
[1739440936918,0.74554,2682.2,2682.1,1.28787]
[1739440937117,0.74554,2682.2,2682.1,0.5423]
[1739440937311,0.58,2682.3,2682.1,0.5423]
[1739440937510,0.58,2682.3,2682.2,0.74554]
[1739440937816,0.74547,2682.5,2682.4,0.74549]
[1739440938014,0.584,2682.6,2682.5,0.74546]
[1739440938207,0.00559315,2683.0,2682.3,6.48095266]
[1739440938404,0.54379315,2683.0,2682.8,0.74536]
[1739440938816,0.74535,2682.9,2682.8,0.74536]
[1739440939616,0.54379315,2683.0,2682.7,3.2078]
[1739440939819,1.28913315,2683.0,2682.7,3.2078]
[1739440940011,0.54379315,2683.0,2682.8,1.30936]
[1739440940211,1.28913315,2683.0,2682.8,1.30936]
[1739440940413,0.54379315,2683.0,2682.9,0.74535]
[1739440940719,0.00559315,2683.0,2682.9,1.29995]
[1739440941507,0.75091315,2683.0,2682.9,1.29995]
[1739440941919,0.00559315,2683.0,2682.7,3.2078]
[1739440942119,0.00559315,2683.0,2682.7,3.95319]
[1739440942313,0.00559315,2683.0,2682.7,3.2078]
[1739440942515,0.75093315,2683.0,2682.8,0.74538]
[1739440942912,0.74535,2682.9,2682.7,3.2078]
[1739440943118,0.74538,2682.8,2682.7,3.2078]
[1739440943319,0.5676,2682.8,2682.7,3.9532]
[1739440943517,1.31298,2682.8,2682.7,3.9532]
[1739440944025,0.5676,2682.8,2682.7,3.9532]
[1739440944319,0.00559315,2683.0,2682.9,0.74535]
[1739440946920,0.00559315,2683.0,2682.7,3.2078]
[1739440947220,0.74537,2682.9,2682.8,0.74537]
[1739440947424,0.74537,2682.9,2682.7,3.2078]
[1739440947722,0.74537,2682.9,2682.8,0.74538]
[1739440947922,1.33637,2682.9,2682.8,0.74538]